bitfinex-derivatives/quotes_BTCF0:USTF0_20251229
["timestamp","ask_amount","ask_price","bid_price","bid_amount"]
[1767010683388,0.18893464,86960.0,86937.0,0.00017246]
[1767010683594,0.0115147,86948.0,86937.0,0.00017246]
[1767010683891,0.0115147,86948.0,86932.0,0.11500598]
[1767010684793,0.0115152,86945.0,86932.0,0.11500598]
[1767010685183,0.0115137,86955.0,86932.0,0.10900598]
[1767010685385,0.0115132,86959.0,86933.0,0.0115166]
[1767010685585,0.0115137,86956.0,86932.0,0.10900598]
[1767010685785,0.0115137,86956.0,86931.0,0.01167246]
[1767010685985,0.0115137,86956.0,86933.0,0.11502383]
[1767010686185,0.0115131,86960.0,86934.0,0.0115165]
[1767010686787,0.0115136,86956.0,86934.0,0.0115165]
[1767010686985,0.0115136,86956.0,86932.0,0.0115167]
[1767010687186,0.01168556,86961.0,86935.0,0.0115162]
[1767010687385,0.0115135,86957.0,86935.0,0.0115162]
[1767010687580,0.0115139,86954.0,86931.0,0.02318936]
[1767010687785,0.0115139,86954.0,86931.0,0.01167246]
[1767010687986,0.0115139,86954.0,86933.0,0.11501656]
[1767010688180,0.0115138,86955.0,86931.0,0.02318936]
[1767010688595,0.0115138,86955.0,86933.0,0.0115166]
[1767010688792,0.00017246,86961.0,86940.0,0.0115156]
[1767010689090,0.0115109,86977.0,86940.0,0.0115156]
[1767010689091,0.0115105,86980.0,86956.0,0.0115135]
[1767010689298,0.09784,86982.0,86941.0,0.11501722]
[1767010689494,0.09784,86984.0,86970.0,0.0115117]
[1767010689690,0.09784,86995.0,86950.0,0.18893464]
[1767010689889,0.011509,86992.0,86968.0,0.0115119]
[1767010690088,0.0115086,86994.0,86974.0,0.0115112]
[1767010690293,0.00017246,86989.0,86971.0,0.00017246]
[1767010690694,0.00017246,86989.0,86972.0,0.12648035]
[1767010690893,0.00017246,86989.0,86975.0,0.011511]
[1767010691084,0.00017246,86989.0,86972.0,0.11496895]
[1767010691290,0.00017246,86989.0,86971.0,0.00017246]
[1767010691597,0.00017246,86989.0,86972.0,0.11496631]
[1767010691894,0.0115094,86988.0,86972.0,0.11496631]
[1767010692397,0.00017246,86989.0,86972.0,0.11496631]
[1767010693497,0.00017246,86989.0,86973.0,0.01149]
[1767010694092,0.0115094,86988.0,86974.0,0.11496829]
[1767010694898,0.05848,87002.0,86974.0,0.11496829]
[1767010695303,0.011505,87021.0,86980.0,0.18893464]
[1767010695492,0.01175649,87023.0,87008.0,0.0115067]
[1767010695687,0.0115041,87028.0,87006.0,0.011507]
[1767010695886,0.09784,87033.0,86990.0,0.05848]
[1767010695887,0.0115044,87026.0,87009.0,0.11495838]
[1767010696093,0.00017246,87026.0,87010.0,0.0115064]
[1767010696295,0.09784,87033.0,87015.0,0.0115057]
[1767010696698,0.09784,87033.0,87011.0,0.0115062]
[1767010697000,0.9784,87059.0,87010.0,0.18893464]
[1767010697001,0.0978,87046.0,87016.0,0.11491941]
[1767010697204,0.011505,87022.0,86999.0,0.0115079]
[1767010697505,0.0978,87046.0,87011.0,0.11490158]
[1767010697998,0.0978,87046.0,87012.0,0.11490158]
[1767010698397,0.0115034,87034.0,87011.0,0.0115063]
[1767010698706,0.0978,87046.0,87014.0,0.00017235]
[1767010698900,0.011504,87029.0,87014.0,0.00017235]
[1767010699103,0.011504,87029.0,87015.0,0.11490422]
[1767010699301,0.0115035,87033.0,87015.0,0.11490422]
[1767010700102,0.0115043,87027.0,87015.0,0.11490422]
[1767010700692,0.0978,87046.0,87014.0,7e-08]
[1767010700901,0.0115021,87043.0,87014.0,7e-08]
[1767010701095,0.0115045,87025.0,87015.0,0.11491082]
[1767010701293,0.0115026,87040.0,87015.0,0.11491082]
[1767010701594,0.0115022,87043.0,87021.0,0.011505]
[1767010701794,0.00017228,87041.0,87025.0,0.0115045]
[1767010702099,0.00017228,87041.0,87020.0,0.18893464]
[1767010702100,0.00017228,87041.0,87021.0,0.0115049]
[1767010702296,0.34236,87061.0,87026.0,0.11490488]
[1767010702498,0.0115019,87045.0,87020.0,0.18893464]
[1767010702703,0.0115012,87050.0,87025.0,0.0115045]
[1767010703099,0.0115006,87055.0,87029.0,0.0115039]
[1767010703295,0.0115006,87055.0,87033.0,0.00017235]
[1767010703504,0.011501,87052.0,87033.0,0.00017235]
[1767010703703,0.011501,87052.0,87034.0,0.114893]
[1767010704007,0.0115016,87047.0,87034.0,0.114893]
[1767010704202,0.34236,87061.0,87033.0,0.00017235]
[1767010704705,0.18893464,87060.0,87017.0,0.0115054]
[1767010704906,0.0115024,87041.0,87014.0,0.0978]
[1767010705110,0.0115003,87057.0,87019.0,0.0115051]
[1767010705308,0.0115025,87041.0,87014.0,0.0978]
[1767010705603,2.35e-06,87036.0,87020.0,0.1264112]
[1767010705806,2.35e-06,87036.0,87019.0,0.00017235]
[1767010705807,0.01150545,87036.0,87019.0,0.00017235]
[1767010705997,0.0115035,87033.0,87019.0,0.00017235]
[1767010706217,2.35e-06,87036.0,87021.0,0.1149062]
[1767010706506,2.35e-06,87036.0,87023.0,0.0115047]
[1767010707099,2.35e-06,87036.0,87019.0,0.00017235]
[1767010707603,2.35e-06,87036.0,87020.0,0.11490356]
[1767010707811,2.35e-06,87036.0,87028.0,0.011504]
[1767010708004,0.0115006,87055.0,87020.0,0.3038382]
[1767010708207,0.0115006,87055.0,87035.0,0.0115031]
[1767010708506,0.0115001,87059.0,87038.0,0.0115026]
[1767010708700,0.3422,87070.0,87030.0,0.18893464]
[1767010708701,0.0114996,87062.0,87030.0,0.18893464]
[1767010708901,0.0115,87059.0,87040.0,0.0115024]
[1767010709298,0.0114977,87077.0,87055.0,0.0115004]
[1767010709509,0.0114977,87077.0,87057.0,0.00017235]
[1767010710216,0.0114975,87078.0,87058.0,0.11487716]
[1767010710510,0.09776,87081.0,87058.0,0.11487716]
[1767010710511,0.011499,87067.0,87058.0,0.11487716]
[1767010710809,0.0114985,87071.0,87058.0,0.11487716]
[1767010711011,0.0114988,87068.0,87058.0,0.11487716]
[1767010711209,0.0115,87059.0,87057.0,0.00017235]
[1767010711407,0.0115014,87049.0,87028.0,0.011504]
[1767010711805,0.0115006,87055.0,87034.0,0.11485935]
[1767010712108,0.0115006,87055.0,87034.0,0.0115032]
[1767010712303,0.00017235,87053.0,87037.0,0.0115028]
[1767010712711,0.00017235,87053.0,87036.0,0.00017235]
[1767010712897,0.0115015,87048.0,87036.0,0.00017235]
[1767010713103,0.00017235,87053.0,87037.0,0.11488376]
[1767010713304,0.0114997,87061.0,87038.0,0.0115027]
[1767010713606,0.011499,87067.0,87036.0,0.00017235]
[1767010713809,0.09776,87078.0,87059.0,0.0114999]
[1767010714003,0.09776,87082.0,87050.0,0.0115011]
[1767010714309,0.09776,87082.0,87057.0,0.00017235]
[1767010714503,0.0114972,87080.0,87057.0,5e-08]
[1767010714702,0.09776,87082.0,87057.0,5e-08]
[1767010714703,0.0114997,87061.0,87057.0,5e-08]
[1767010714904,0.18893464,87080.0,87028.0,0.0115041]
[1767010715103,0.0115013,87049.0,87027.0,0.09776]
[1767010715306,0.0115003,87057.0,87040.0,0.11485539]
[1767010715499,0.0114983,87072.0,87027.0,0.09776]
[1767010715714,0.0115011,87051.0,87036.0,0.11487122]
[1767010715913,0.0115014,87048.0,87036.0,0.11487122]
[1767010716212,0.00017235,87052.0,87036.0,0.11487122]
[1767010716213,0.01167335,87052.0,87036.0,0.11487122]
[1767010716900,0.0115,87060.0,87040.0,0.0115024]
[1767010717109,0.09776,87066.0,87036.0,0.11487122]
[1767010717412,0.09776,87066.0,87036.0,0.1148765]
[1767010717606,0.0115014,87048.0,87036.0,0.1148765]
[1767010717913,0.0115003,87057.0,87036.0,0.1263794]
[1767010718116,0.09772,87079.0,87036.0,0.1148765]
[1767010718316,0.0114989,87067.0,87049.0,0.0115013]
[1767010718514,0.0114989,87067.0,87049.0,0.00017235]
[1767010718914,0.011498,87075.0,87053.0,0.0115007]
[1767010719206,0.09772,87079.0,87050.0,0.0115011]
[1767010719405,0.09772,87079.0,87054.0,0.01148]
[1767010719609,0.0114988,87068.0,87054.0,0.12633803]
[1767010719804,0.0114988,87068.0,87054.0,0.01148]
[1767010720000,0.0114992,87065.0,87055.0,0.11485803]
[1767010720205,0.09772,87079.0,87054.0,0.01148]
[1767010720206,0.0115001,87058.0,87054.0,3e-08]
[1767010720503,0.09772,87059.0,87014.0,0.03084843]
[1767010720804,0.09772,87059.0,87028.0,0.11486331]
[1767010721010,0.0115016,87047.0,87028.0,0.11486331]
[1767010721202,0.09772,87059.0,87012.0,0.15616]
[1767010721407,0.0115002,87058.0,87028.0,0.11486331]
[1767010721603,0.0115002,87058.0,87012.0,0.15616]
[1767010721604,0.00017235,87044.0,87029.0,0.0115038]
[1767010721999,0.00017235,87044.0,87027.0,0.00017235]
[1767010722000,2.35e-06,87044.0,87032.0,0.0115035]
[1767010722203,2.35e-06,87044.0,87027.0,0.00017235]
[1767010722405,2.35e-06,87044.0,87041.0,0.0115023]
[1767010722610,0.0115003,87057.0,87038.0,0.0115027]
[1767010722916,0.0115003,87057.0,87042.0,0.11489234]
[1767010723214,0.0115003,87057.0,87038.0,0.0115027]
[1767010723615,0.0115002,87057.0,87039.0,0.11487716]
[1767010723816,0.0115006,87055.0,87039.0,0.11487716]
[1767010724109,0.0115006,87055.0,87037.0,0.0115029]
[1767010724313,0.0115001,87058.0,87038.0,0.11487716]
[1767010724507,0.09772,87059.0,87042.0,0.0115022]
[1767010724808,0.18893464,87090.0,87030.0,0.20042464]
[1767010724809,0.09772,87074.0,87047.0,0.0115015]
[1767010725009,0.09772,87074.0,87052.0,0.00017235]
[1767010725215,0.0115006,87055.0,87052.0,5e-08]
[1767010726310,0.0115001,87058.0,87052.0,5e-08]
[1767010726615,0.0115006,87055.0,87052.0,5e-08]
[1767010727412,0.0115013,87050.0,87032.0,0.09772]
[1767010727602,0.0115003,87057.0,87032.0,0.09772]
[1767010727804,0.0001723,87062.0,87037.0,0.11487188]
[1767010728003,0.0115013,87049.0,87032.0,0.09772]
[1767010728308,0.0115013,87049.0,87021.0,0.04129013]
[1767010728309,0.0115019,87045.0,87033.0,0.11487188]
[1767010728717,0.0115019,87045.0,87030.0,0.00017235]
[1767010728908,0.0115016,87047.0,87030.0,0.00017235]
[1767010729114,0.00017235,87048.0,87031.0,0.11488904]
[1767010729115,0.0115028,87038.0,87031.0,0.11488904]
[1767010729315,0.0115028,87038.0,87030.0,0.00017235]
[1767010729514,0.0115023,87042.0,87030.0,0.00017235]
[1767010729710,0.0115021,87043.0,87030.0,0.00017235]
[1767010729917,0.01167385,87048.0,87030.0,0.00017235]
[1767010730218,0.0115016,87047.0,87031.0,0.11489696]
[1767010731307,0.00017235,87048.0,87031.0,0.11489696]
[1767010731711,0.0115016,87047.0,87031.0,0.11489696]
[1767010732011,0.00017235,87048.0,87017.0,0.0115055]
[1767010732218,0.00017235,87048.0,87011.0,0.03084843]
[1767010732409,0.0115021,87043.0,87020.0,0.12639602]
[1767010732606,0.00017235,87048.0,87020.0,0.011505]
[1767010732812,0.0115033,87034.0,87021.0,0.1148996]
[1767010733013,0.0115027,87038.0,87021.0,0.1148996]
[1767010733217,0.0115027,87038.0,87019.0,0.00017235]
[1767010733419,0.0115027,87038.0,87022.0,0.1148996]
[1767010733718,0.0115027,87038.0,87020.0,0.0115051]
[1767010733912,0.0115027,87038.0,87021.0,0.11490356]
[1767010734109,0.17561009,87050.0,87021.0,0.11490356]
[1767010734314,0.18893464,87040.0,87019.0,0.00017235]
[1767010734716,0.0115036,87032.0,87020.0,0.11489564]
[1767010735020,0.18893464,87040.0,87020.0,0.11489564]
[1767010735317,0.0115035,87033.0,87020.0,0.11489564]
[1767010735518,0.0115038,87030.0,87020.0,0.11489564]
[1767010735820,0.0115038,87030.0,87019.0,0.00017235]
[1767010736225,0.09772,87038.0,87019.0,0.00017235]
[1767010736520,0.0115038,87031.0,87019.0,0.00017235]
[1767010737416,0.09772,87038.0,87019.0,0.00017235]
[1767010737810,0.09772,87038.0,87007.0,0.00031]
[1767010738117,0.18893464,87030.0,87007.0,0.00031]
[1767010738511,0.05844,87037.0,87007.0,0.00031]
[1767010738821,0.0115047,87024.0,87013.0,0.00017235]
[1767010740108,0.0115052,87020.0,87013.0,2.35e-06]
[1767010740419,0.011506,87014.0,86995.0,0.0115083]
[1767010740615,0.09772,87020.0,86990.0,0.03094724]
[1767010740616,0.09772,87020.0,86990.0,9.881e-05]
[1767010740817,0.18893464,87010.0,86979.0,0.0115105]
[1767010741120,0.18893464,87010.0,86982.0,0.11492073]
[1767010741320,0.011508,86998.0,86986.0,0.00017235]
[1767010741616,0.0115085,86995.0,86976.0,0.0115109]
[1767010741817,9.881e-05,86994.0,86961.0,0.13905013]
[1767010742119,0.0115088,86993.0,86973.0,0.11494781]
[1767010742319,9.881e-05,86994.0,86973.0,0.11494781]
[1767010742506,0.05844,87002.0,86986.0,0.0115096]
[1767010742710,0.09776,86999.0,86982.0,0.0115101]
[1767010744019,0.00017235,87003.0,86988.0,0.0115093]
[1767010744220,0.00017235,87003.0,86983.0,0.12646508]
[1767010744516,0.00017235,87003.0,86986.0,0.0115096]
[1767010744816,0.00017235,87003.0,86988.0,0.0115093]
[1767010745021,0.00017235,87003.0,86984.0,0.11494847]
[1767010745216,0.0115068,87008.0,86984.0,0.11494847]
[1767010745422,0.05943915,87010.0,86983.0,0.01151]
[1767010745623,0.0115068,87008.0,86985.0,0.0115097]
[1767010745922,0.05943915,87010.0,86982.0,0.00031]
[1767010746324,0.09776,87021.0,86999.0,0.0115079]
[1767010746522,0.01138188,87045.0,86982.0,0.00031]
[1767010746724,0.0115036,87032.0,87000.0,0.11494781]
[1767010746926,0.13068,87044.0,87006.0,0.0115069]
[1767010747120,0.0115025,87041.0,86982.0,0.00031]
[1767010747326,0.0115025,87041.0,87000.0,0.0115077]
[1767010747528,0.0115025,87041.0,86996.0,0.0115082]
[1767010747825,0.011506,87014.0,87001.0,0.11492733]
[1767010748021,0.011506,87014.0,86982.0,0.00031]
[1767010748022,0.011506,87014.0,86995.0,0.0115084]
[1767010748322,0.0115055,87018.0,87002.0,0.11492733]
[1767010748524,0.0115049,87022.0,86982.0,0.00031]
[1767010748725,0.0115053,87019.0,87003.0,0.11493658]
[1767010748922,0.0115053,87019.0,86997.0,0.011508]
[1767010748923,0.00017245,87020.0,87002.0,0.00017245]
[1767010750423,0.00017245,87020.0,87003.0,0.11492799]
[1767010750424,0.0115055,87017.0,87003.0,0.11492799]
[1767010750627,0.0115055,87018.0,87003.0,0.09992799]
[1767010750829,0.0115055,87018.0,87003.0,0.09392799]
[1767010751121,0.00017245,87020.0,87003.0,0.09392799]
[1767010751122,0.00017245,87020.0,87006.0,0.0115069]
[1767010751317,0.0115053,87019.0,87003.0,0.09392799]
[1767010751522,0.0115054,87019.0,87002.0,0.00017245]
[1767010751724,0.00017245,87020.0,87002.0,0.00017245]
[1767010751922,0.0115071,87005.0,86987.0,0.0115094]
[1767010752225,0.00017245,87020.0,86982.0,0.00031]
[1767010752226,0.0115067,87009.0,86986.0,0.0115096]
[1767010752524,0.0115068,87008.0,86987.0,0.0115094]
[1767010752827,0.0115065,87010.0,86989.0,0.0115091]
[1767010753127,0.00017245,87008.0,86991.0,0.00017245]
[1767010753827,0.00017245,87008.0,86992.0,0.12645198]
[1767010754028,0.01167925,87008.0,86992.0,0.11494318]
[1767010754625,2.45e-06,87008.0,86992.0,0.11494318]
[1767010754828,2.45e-06,87008.0,86993.0,0.0115086]
[1767010755018,2.45e-06,87008.0,86992.0,0.11494318]
[1767010755219,2.45e-06,87008.0,86991.0,0.01168135]
[1767010755414,2.45e-06,87008.0,86992.0,0.11494252]
[1767010755820,0.01150915,87008.0,86992.0,0.11494252]
[1767010757228,2.45e-06,87008.0,86992.0,0.11494252]
[1767010757427,2.45e-06,87008.0,86993.0,0.0115087]
[1767010757631,0.0115073,87004.0,86992.0,0.11494252]
[1767010757932,2.45e-06,87008.0,86991.0,0.00017245]
[1767010758227,0.0115082,86997.0,86991.0,0.00017245]
[1767010758430,2.45e-06,87008.0,86991.0,0.00017245]
[1767010758733,0.0115084,86996.0,86991.0,5e-08]
[1767010758925,0.0115069,87007.0,86991.0,5e-08]
[1767010759126,0.011509,86992.0,86982.0,0.00031]
[1767010759624,0.09776245,87008.0,86983.0,0.11494318]
[1767010760128,0.09776245,87008.0,86987.0,0.00017245]
[1767010760129,0.011508,86998.0,86987.0,0.00017245]
[1767010761927,0.09776245,87008.0,86982.0,4e-08]
[1767010762124,0.0115102,86982.0,86969.0,0.00187478]
[1767010762325,0.05844,87005.0,86969.0,0.01338658]
[1767010762626,0.05844,87005.0,86991.0,0.0115089]
[1767010762828,0.0115035,87033.0,86995.0,0.0115083]
[1767010763033,0.24448,87037.0,87005.0,0.00017245]
[1767010763034,0.00017245,87023.0,87005.0,0.00017245]
[1767010763330,0.0115054,87018.0,87005.0,0.00017245]
[1767010763524,0.0115058,87016.0,87005.0,0.00017245]
[1767010764426,0.00017245,87023.0,87005.0,0.00017245]
[1767010764626,0.0115056,87017.0,87005.0,0.00017245]
[1767010765332,0.00017245,87023.0,87005.0,0.00017245]
[1767010766026,0.0115066,87009.0,87005.0,5e-08]
[1767010766236,0.0115062,87012.0,87005.0,5e-08]
[1767010766427,0.00017245,87023.0,87005.0,5e-08]
[1767010766624,0.0115056,87017.0,87005.0,5e-08]
[1767010767027,0.06080826,87050.0,87005.0,5e-08]
[1767010767331,0.0115043,87027.0,87007.0,0.0115067]
[1767010767529,0.0115041,87028.0,87007.0,0.0115068]
[1767010767925,0.0115041,87028.0,87008.0,0.1149062]
[1767010768125,0.00017235,87027.0,87010.0,0.0115064]
[1767010768325,2.35e-06,87027.0,87012.0,0.0115061]
[1767010768931,2.35e-06,87027.0,87011.0,0.0115063]
[1767010769134,2.35e-06,87027.0,87009.0,0.00017235]
[1767010769334,2.35e-06,87027.0,87010.0,0.11491809]
[1767010769532,2.35e-06,87027.0,87014.0,0.0115059]
[1767010769732,2.35e-06,87027.0,87010.0,0.11491809]
[1767010769926,2.35e-06,87027.0,87009.0,0.01167885]
[1767010770127,2.35e-06,87027.0,87012.0,0.0115062]
[1767010770636,2.35e-06,87027.0,87017.0,0.0115055]
[1767010770834,0.0115016,87047.0,87013.0,0.11491677]
[1767010771134,0.0115038,87031.0,87010.0,0.0115064]
[1767010771337,0.0115038,87031.0,87010.0,0.12642317]
[1767010771838,0.00017235,87029.0,87012.0,0.0115061]
[1767010772537,0.00017235,87029.0,87013.0,0.11491545]
[1767010772739,0.00017235,87029.0,87014.0,0.0115059]
[1767010773531,0.00017235,87029.0,87015.0,0.11491545]
[1767010774147,0.00017235,87029.0,87016.0,0.0115056]
[1767010774526,0.00017235,87029.0,87017.0,0.11491413]
[1767010774731,0.0115031,87035.0,87017.0,0.11491413]
[1767010774931,0.09776,87049.0,87018.0,0.0115053]
[1767010775545,0.011502,87044.0,87025.0,0.0115044]
[1767010775733,0.00017235,87042.0,87026.0,0.0115042]
[1767010775927,0.00017235,87042.0,87026.0,0.01167655]
[1767010776131,0.09776,87049.0,87027.0,0.11489828]
[1767010776838,0.09776,87049.0,87013.0,0.09776]
[1767010776839,0.0115016,87047.0,87013.0,0.09776]
[1767010777142,0.0115026,87039.0,87002.0,0.0115074]
[1767010777343,0.0115047,87024.0,87002.0,0.0115074]
[1767010777543,0.011505,87022.0,87007.0,0.11489234]
[1767010777844,0.0115046,87025.0,87004.0,0.0115071]
[1767010778033,0.01167715,87023.0,87006.0,0.00017235]
[1767010778629,0.00017235,87023.0,87009.0,0.0115065]
[1767010778833,2.35e-06,87023.0,87010.0,0.0115064]
[1767010779340,2.35e-06,87023.0,87012.0,0.0115062]
[1767010779536,2.35e-06,87023.0,87011.0,0.11492337]
[1767010779736,2.35e-06,87023.0,87007.0,0.0115068]
[1767010780043,2.35e-06,87023.0,87007.0,0.11492073]
[1767010782434,2.35e-06,87023.0,87009.0,0.0115065]
[1767010783134,2.35e-06,87023.0,87010.0,0.11492271]
[1767010783743,2.35e-06,87023.0,87006.0,0.01167935]
[1767010783931,2.35e-06,87023.0,87008.0,0.0115066]
[1767010784636,2.35e-06,87023.0,87009.0,0.11492073]
[1767010785037,2.35e-06,87023.0,87007.0,0.0115068]
[1767010785246,2.35e-06,87023.0,87008.0,0.11492205]
[1767010785838,0.0115028,87038.0,87008.0,0.11492205]
[1767010786240,0.0115047,87024.0,87008.0,0.11492205]
[1767010786435,0.0115057,87016.0,87008.0,0.11492205]
[1767010786641,0.0115059,87015.0,87006.0,0.00017235]
[1767010787141,0.0115059,87015.0,87007.0,0.11492139]
[1767010787838,0.00017235,87019.0,87006.0,5e-08]
[1767010788741,0.0115063,87012.0,87006.0,5e-08]
[1767010790147,0.0115058,87015.0,87006.0,5e-08]
[1767010790342,0.00017235,87019.0,86981.0,0.04129013]
[1767010790343,0.4,87014.0,86981.0,0.04129013]
[1767010790553,0.0115065,87010.0,86970.0,0.04129013]
[1767010790842,0.0584,87013.0,86976.0,0.11492865]
[1767010791149,0.0115087,86994.0,86973.0,0.0115113]
[1767010791347,0.01168125,86992.0,86975.0,0.00017235]
[1767010791646,0.0115092,86990.0,86975.0,0.00017235]
[1767010792046,0.0115092,86990.0,86975.0,0.00204929]
[1767010792249,0.0115092,86990.0,86976.0,0.11496433]
[1767010792544,0.0115097,86986.0,86976.0,0.11496433]
[1767010792847,0.00017235,86992.0,86975.0,0.00017235]
[1767010794343,0.0115093,86989.0,86975.0,0.00017235]
[1767010794742,0.0115093,86989.0,86975.0,0.00204929]
[1767010796048,0.0115096,86987.0,86975.0,0.00204929]
[1767010796251,0.0115096,86987.0,86975.0,0.00017235]
[1767010796437,0.0115091,86990.0,86977.0,0.00187694]
[1767010796749,0.0115091,86990.0,86975.0,0.00017235]
[1767010796950,0.00017235,86992.0,86976.0,0.00187694]
[1767010797152,0.011509,86991.0,86975.0,0.00017235]
[1767010797340,0.00017235,86992.0,86975.0,0.00017235]
[1767010797651,0.00017235,86992.0,86965.0,0.0115124]
[1767010797837,0.00017235,86992.0,86957.0,0.09776]
[1767010798148,0.0115109,86977.0,86959.0,0.11496433]
[1767010798348,0.0584,86990.0,86952.0,0.00187694]
[1767010798544,0.0115095,86987.0,86953.0,0.011514]
[1767010798743,0.0115115,86973.0,86962.0,0.00017245]
[1767010799842,0.0115117,86971.0,86962.0,0.00017245]
[1767010801345,0.09797245,86980.0,86947.0,0.0033164]
[1767010801738,0.0115131,86960.0,86948.0,0.1149868]
[1767010801949,0.0115134,86958.0,86947.0,0.0033164]
[1767010802145,0.0115108,86977.0,86934.0,0.0978]
[1767010802146,0.011514,86953.0,86934.0,0.0978]
[1767010802451,0.00017245,86952.0,86935.0,0.11516322]
[1767010802647,0.00017245,86952.0,86935.0,2e-08]
[1767010802851,0.00017245,86952.0,86920.0,0.04285621]
[1767010803245,0.00017245,86952.0,86921.0,0.11501722]
[1767010803444,0.0978,86951.0,86920.0,0.04285621]
[1767010803649,0.0115167,86933.0,86896.0,0.00013646]
[1767010803953,0.0699541,86953.0,86902.0,0.11502648]
[1767010803954,0.09790408,86932.0,86902.0,0.11502648]
[1767010804254,0.0978,86931.0,86879.0,0.0923677]
[1767010804552,0.0115183,86921.0,86879.0,0.0923677]
[1767010804746,1.55844,86930.0,86862.0,0.011526]
[1767010804747,0.0115221,86892.0,86862.0,0.011526]
[1767010804949,0.0978,86891.0,86862.0,0.011526]
[1767010805252,0.10941831,86890.0,86862.0,0.06544961]
[1767010805448,0.0115237,86880.0,86848.0,0.0115279]
[1767010805748,0.0115242,86877.0,86851.0,0.0115274]
[1767010805950,0.00017266,86873.0,86851.0,0.0115274]
[1767010806344,0.00017266,86873.0,86852.0,0.11510658]
[1767010806545,0.0115251,86870.0,86852.0,0.11510658]
[1767010806751,0.00017266,86873.0,86839.0,0.011529]
[1767010806752,0.0115253,86868.0,86839.0,0.011529]
[1767010806945,0.0115256,86866.0,86839.0,0.011529]
[1767010807251,9.405e-05,86867.0,86828.0,8.402e-05]
[1767010807252,0.18923781,86860.0,86828.0,8.402e-05]
[1767010807553,0.00017266,86853.0,86833.0,0.0115299]
[1767010807945,0.00017266,86853.0,86828.0,8.402e-05]
[1767010808142,2.66e-06,86853.0,86828.0,8.402e-05]
[1767010808342,9.405e-05,86867.0,86834.0,0.115149]
[1767010808538,0.0115256,86866.0,86835.0,0.0115296]
[1767010808744,9.405e-05,86867.0,86831.0,0.11514038]
[1767010809054,9.405e-05,86867.0,86843.0,0.0115286]
[1767010809353,0.07577659,86920.0,86850.0,0.18923781]
[1767010809543,0.18923781,86900.0,86851.0,0.09784]
[1767010809855,0.09784,86899.0,86851.0,0.21293466]
[1767010810151,0.011523,86885.0,86854.0,0.011527]
[1767010810452,0.09784,86899.0,86861.0,0.00017266]
[1767010810453,0.0115241,86877.0,86861.0,0.00017266]
[1767010810747,0.0115241,86877.0,86846.0,0.0115281]
[1767010810748,0.0114741,86877.0,86846.0,0.0115281]
[1767010811141,0.00017266,86878.0,86847.0,0.1151152]
[1767010811341,0.00017266,86878.0,86828.0,0.09792402]
[1767010811548,0.00017266,86878.0,86833.0,0.0115299]
[1767010811844,0.00017266,86878.0,86847.0,0.00017266]
[1767010811845,0.0115243,86875.0,86847.0,0.00017266]
[1767010812045,0.00017266,86878.0,86850.0,0.18923781]
[1767010812353,0.0115257,86865.0,86848.0,0.11513707]
[1767010812555,0.0115257,86865.0,86847.0,0.00017266]
[1767010812753,0.00014396,86864.0,86831.0,0.0115301]
[1767010812949,0.00014396,86864.0,86830.0,0.18923781]
[1767010813144,0.00014396,86864.0,86836.0,0.11513243]
[1767010813341,3.96e-06,86864.0,86850.0,0.18923781]
[1767010813541,3.96e-06,86864.0,86851.0,0.0115274]
[1767010813750,3.96e-06,86864.0,86855.0,0.011527]
[1767010813950,0.00017266,86866.0,86855.0,0.011527]
[1767010814247,0.00017266,86866.0,86850.0,0.20076541]
[1767010814645,0.011524,86878.0,86851.0,0.11508176]
[1767010814956,0.0115243,86876.0,86851.0,0.11508176]
[1767010815544,0.2024,86929.0,86860.0,0.18923781]
[1767010815745,0.011521,86900.0,86886.0,0.00017266]
[1767010815944,0.011521,86900.0,86851.0,0.11508176]
[1767010815945,0.0115219,86894.0,86869.0,0.09788]
[1767010816254,0.09788,86908.0,86864.0,0.0115257]
[1767010816462,0.011522,86893.0,86864.0,0.0115257]
[1767010816960,0.011522,86893.0,86855.0,0.09788]
[1767010816961,0.00017266,86887.0,86855.0,0.09788]
[1767010817346,0.09788,86908.0,86877.0,0.18923781]
[1767010817551,0.0115206,86903.0,86878.0,0.0115239]
[1767010817758,0.0115206,86903.0,86878.0,0.12660863]
[1767010818156,0.09788,86924.0,86880.0,0.18923781]
[1767010818358,0.00017266,86911.0,86893.0,0.01169456]
[1767010818857,0.00017266,86911.0,86893.0,0.00017266]
[1767010819064,0.0115205,86905.0,86879.0,0.0115237]
[1767010819265,0.0115198,86910.0,86883.0,0.0115231]
[1767010819756,0.011521,86901.0,86876.0,0.0115241]
[1767010820357,0.00017266,86911.0,86871.0,0.0115248]
[1767010820661,0.00017266,86911.0,86892.0,0.0115221]
[1767010820859,0.00017266,86911.0,86883.0,0.0115232]
[1767010821062,0.00017266,86911.0,86874.0,0.0115244]
[1767010821261,0.00017266,86911.0,86902.0,0.0115207]
[1767010821453,0.00017266,86911.0,86905.0,0.0115202]
[1767010821656,0.09788,86924.0,86901.0,0.0115208]
[1767010821856,0.0115179,86924.0,86901.0,0.0115208]
[1767010822466,0.0115177,86925.0,86904.0,0.0115204]
[1767010822674,0.00017266,86923.0,86904.0,0.0115204]
[1767010823465,0.00017266,86923.0,86907.0,0.01152]
[1767010823661,0.0115166,86933.0,86910.0,0.18923781]
[1767010823863,0.1093961,86938.0,86914.0,0.0115191]
[1767010824173,0.30324,86950.0,86926.0,0.0115175]
[1767010824174,0.0115147,86948.0,86926.0,0.0115175]
[1767010824364,0.0115152,86945.0,86921.0,0.0115181]
[1767010824560,0.0115152,86945.0,86912.0,0.09788]
[1767010824561,1.5,86949.0,86912.0,0.09788]
[1767010824871,0.1093943,86951.0,86927.0,0.0115173]
[1767010825168,0.0115151,86945.0,86923.0,0.011518]
[1767010825467,0.0115151,86945.0,86923.0,0.12654911]
[1767010825767,0.00017254,86943.0,86923.0,0.11503111]
[1767010826165,0.00017254,86943.0,86930.0,0.0115169]
[1767010826371,0.09788,86951.0,86930.0,0.0115169]
[1767010826557,0.09788,86951.0,86930.0,0.011517]
[1767010826760,0.011516,86938.0,86922.0,0.00017254]
[1767010827075,1.5,86959.0,86925.0,0.0115177]
[1767010827253,1.5,86959.0,86923.0,0.11502119]
[1767010827254,0.0115133,86958.0,86934.0,0.0115165]
[1767010827453,0.00017254,86955.0,86925.0,0.0115177]
[1767010827658,0.00017254,86955.0,86930.0,0.18923781]
[1767010827858,0.00017254,86955.0,86933.0,0.0115166]
[1767010828359,0.00017254,86955.0,86934.0,0.11501391]
[1767010828968,0.00017254,86955.0,86922.0,0.00017254]
[1767010829269,0.0115142,86952.0,86923.0,0.1150159]
[1767010829660,0.0115142,86952.0,86932.0,0.0115167]
[1767010829860,0.00017254,86955.0,86923.0,0.1150159]
[1767010829861,0.00017254,86955.0,86935.0,0.0115163]
[1767010830168,0.00017254,86955.0,86941.0,0.0115155]
[1767010830770,0.01168624,86955.0,86937.0,0.011516]
[1767010830970,0.00017254,86955.0,86937.0,0.011516]
[1767010831571,0.01168634,86955.0,86933.0,0.0115165]
[1767010832271,0.00017254,86955.0,86929.0,0.011517]